fUSD/lending_fUSD_20250522
["ID","MTS","AMOUNT","RATE_DAILY","PERIOD"]
[361986554,1747925445819,-420.0,0.0003315,5]
[361986555,1747925445829,-420.0,0.0003315,5]
[361986556,1747925445840,-500.29,0.0003315,5]
[361986557,1747925445850,-1091.08,0.0003315,5]
[361986558,1747925445859,-420.0,0.0003315,5]
[361986559,1747925445869,-420.0,0.0003315,5]
[361986560,1747925445878,-420.0,0.0003315,5]
[361986561,1747925445887,-420.0,0.0003315,5]
[361986562,1747925445897,-420.0,0.0003315,5]
[361986563,1747925445906,-420.0,0.0003315,5]
[361986564,1747925445916,-743.67,0.0003315,5]
[361986565,1747925445928,-420.0,0.0003315,5]
[361986566,1747925445940,-452.38,0.0003315,5]
[361986567,1747925445949,-676.62,0.0003315,5]
[361986568,1747925445959,-420.0,0.0003315,5]
[361986569,1747925445971,-765.16,0.0003315,5]
[361986570,1747925445980,-420.0,0.0003315,5]
[361986579,1747925446152,-1055.43,0.0003315,5]
[361986580,1747925446162,-420.0,0.0003315,5]
[361986581,1747925446171,-420.0,0.0003315,5]
[361986582,1747925446180,-420.0,0.0003315,5]
[361986583,1747925446190,-420.0,0.0003315,5]
[361986584,1747925446200,-420.0,0.0003315,5]
[361986585,1747925446209,-586.63,0.0003315,5]
[361986586,1747925446219,-1087.15,0.0003315,5]
[361986587,1747925446229,-420.0,0.0003315,5]
[361986588,1747925446238,-420.0,0.0003315,5]
[361986589,1747925446247,-420.0,0.0003315,5]
[361986590,1747925446257,-558.57,0.0003315,5]
[361986591,1747925446266,-420.0,0.0003315,5]
[361986592,1747925446275,-420.0,0.0003315,5]
[361986593,1747925446284,-544.71,0.0003315,5]
[361986594,1747925446294,-975.98,0.0003315,5]
[361986595,1747925446303,-420.0,0.0003315,5]
[361986596,1747925446312,-420.0,0.0003315,5]
[361986597,1747925446322,-420.0,0.0003315,5]
[361986598,1747925446332,-420.0,0.0003315,5]
[361986599,1747925446341,-932.61,0.0003315,5]
[361986600,1747925446350,-420.0,0.0003315,5]
[361986601,1747925446359,-420.0,0.0003315,5]
[361986602,1747925446369,-775.74,0.0003315,5]
[361986603,1747925446378,-420.0,0.0003315,5]
[361986604,1747925446387,-420.0,0.0003315,5]
[361986605,1747925446397,-420.0,0.0003315,5]
[361986606,1747925446406,-420.0,0.0003315,5]
[361986607,1747925446415,-867.94,0.0003315,5]
[361986608,1747925446424,-420.0,0.0003315,5]
[361986609,1747925446434,-420.0,0.0003315,5]
[361986610,1747925446443,-715.99,0.0003315,5]
[361986611,1747925446452,-776.86,0.0003315,5]
[361986612,1747925446462,-440.4,0.0003315,5]
[361986613,1747925446471,-858.82,0.0003315,5]
[361986614,1747925446480,-420.0,0.0003315,5]
[361986615,1747925446490,-670.95,0.0003315,5]
[361986616,1747925446499,-1042.53,0.0003315,5]
[361986617,1747925446509,-668.89,0.0003315,5]
[361986618,1747925446518,-501.2,0.0003315,5]
[361986619,1747925446527,-900.94,0.0003315,5]
[361986620,1747925446538,-622.33,0.0003315,5]
[361986621,1747925446548,-420.0,0.0003315,5]
[361986622,1747925446558,-420.0,0.0003315,5]
[361986623,1747925446568,-420.0,0.0003315,5]
[361986624,1747925446577,-813.92,0.0003315,5]
[361986625,1747925446588,-620.51,0.0003315,5]
[361986626,1747925446597,-812.82,0.0003315,5]
[361986627,1747925446606,-420.0,0.0003315,5]
[361986628,1747925446615,-614.6,0.0003315,5]
[361986629,1747925446624,-661.18,0.0003315,5]
[361986630,1747925446634,-420.0,0.0003315,5]
[361986631,1747925446643,-498.45,0.0003315,5]
[361986632,1747925446653,-420.0,0.0003315,5]
[361986633,1747925446662,-797.59,0.0003315,5]
[361986634,1747925446671,-944.2,0.0003315,5]
[361986635,1747925446681,-686.92,0.0003315,5]
[361986636,1747925446690,-420.0,0.0003315,5]
[361986637,1747925446699,-429.25,0.0003315,5]
[361986638,1747925446709,-420.0,0.0003315,5]
[361986639,1747925446718,-498.83,0.0003315,5]
[361986640,1747925446727,-743.65,0.0003315,5]
[361986641,1747925446737,-668.76,0.0003315,5]
[361986642,1747925446746,-722.18,0.0003315,5]
[361986643,1747925446756,-853.98,0.0003315,5]
[361986644,1747925446765,-420.0,0.0003315,5]
[361986645,1747925446774,-772.83,0.0003315,5]
[361986646,1747925446784,-938.35,0.0003315,5]
[361986647,1747925446793,-881.8,0.0003315,5]
[361986648,1747925446802,-677.73,0.0003315,5]
[361986649,1747925446812,-420.0,0.0003315,5]
[361986650,1747925446822,-420.0,0.0003315,5]
[361986651,1747925446832,-476.06,0.0003315,5]
[361986652,1747925446841,-485.96,0.0003315,5]
[361986653,1747925446851,-595.28,0.0003315,5]
[361986654,1747925446861,-421.4,0.0003315,5]
[361986655,1747925446870,-648.62,0.0003315,5]
[361986656,1747925446880,-603.79,0.0003315,5]
[361986657,1747925446889,-809.53,0.0003315,5]
[361986658,1747925446899,-958.64,0.0003315,5]
[361986659,1747925446908,-420.0,0.0003315,5]
[361986660,1747925446918,-420.0,0.0003315,5]
[361986661,1747925446929,-420.0,0.0003315,5]
[361986662,1747925446942,-1112.07,0.0003315,5]
[361986663,1747925446952,-420.0,0.0003315,5]
[361986664,1747925446961,-420.0,0.0003315,5]
[361986665,1747925446973,-920.13,0.0003315,5]
[361986666,1747925446982,-420.0,0.0003315,5]
[361986667,1747925446992,-984.36,0.0003315,5]
[361986668,1747925447003,-420.0,0.0003315,5]
[361986669,1747925447014,-508.68,0.0003315,5]
[361986670,1747925447025,-448.16,0.0003315,5]
[361986671,1747925447034,-420.0,0.0003315,5]
[361986672,1747925447044,-420.0,0.0003315,5]
[361986673,1747925447053,-761.88,0.0003315,5]
[361986674,1747925447063,-508.72,0.0003315,5]
[361986675,1747925447072,-1307.6,0.0003315,5]
[361986676,1747925447083,-633.85,0.0003315,5]
[361986677,1747925447094,-769.47,0.0003315,5]
[361986678,1747925447104,-821.9,0.0003315,5]
[361986679,1747925447114,-681.48,0.0003315,5]
[361986680,1747925447123,-501.03,0.0003315,5]
[361986681,1747925447136,-887.65,0.0003315,5]
[361986682,1747925447145,-566.04,0.0003315,5]
[361986683,1747925447154,-420.0,0.0003315,5]
[361986684,1747925447165,-688.23,0.0003315,5]
[361986685,1747925447174,-420.0,0.0003315,5]
[361986686,1747925447184,-420.0,0.0003315,5]
[361986687,1747925447194,-420.0,0.0003315,5]
[361986688,1747925447204,-420.0,0.0003315,5]
[361986689,1747925447214,-420.0,0.0003315,5]
[361986690,1747925447223,-420.0,0.0003315,5]
[361986691,1747925447232,-521.53,0.0003315,5]
[361986692,1747925447242,-499.21,0.0003315,5]
[361986693,1747925447252,-1672.5,0.0003315,5]
[361986694,1747925447261,-827.52,0.0003315,5]
[361986695,1747925447271,-432.98752239,0.0003315,5]
[361986696,1747925447280,-435.1,0.0003315,5]
[361986697,1747925447289,-1703.62,0.0003315,5]
[361986698,1747925447298,-746.43,0.0003315,5]
[361986699,1747925447308,-593.11,0.0003315,5]
[361986700,1747925447317,-1244.2,0.0003315,5]
[361986701,1747925447327,-540.49,0.0003315,5]
[361986702,1747925447338,-432.88,0.0003315,5]
[361986703,1747925447347,-420.0,0.0003315,5]
[361986704,1747925447356,-583.64,0.0003315,5]
[361986705,1747925447366,-489.74,0.0003315,5]
[361986706,1747925447375,-600.56,0.0003315,5]
[361986707,1747925447385,-420.0,0.0003315,5]
[361986708,1747925447394,-561.25,0.0003315,5]
[361986709,1747925447404,-420.0,0.0003315,5]
[361986710,1747925447413,-420.0,0.0003315,5]
[361986711,1747925447423,-420.0,0.0003315,5]
[361986712,1747925447432,-970.47,0.0003315,5]
[361986713,1747925447442,-420.0,0.0003315,5]
[361986714,1747925447451,-420.0,0.0003315,5]
[361986715,1747925447461,-420.0,0.0003315,5]
[361986716,1747925447470,-1983.06,0.0003315,5]
[361986717,1747925447480,-520.44,0.0003315,5]
[361986718,1747925447489,-952.32,0.0003315,5]
[361986719,1747925447498,-420.0,0.0003315,5]
[361986720,1747925447507,-420.0,0.0003315,5]
[361986721,1747925447517,-599.17,0.0003315,5]
[361986722,1747925447526,-613.08,0.0003315,5]
[361986723,1747925447536,-896.27,0.0003315,5]
[361986724,1747925447545,-420.0,0.0003315,5]
[361986725,1747925447554,-694.63,0.0003315,5]
[361986726,1747925447564,-420.82,0.0003315,5]
[361986727,1747925447573,-420.0,0.0003315,5]
[361986728,1747925447585,-584.89,0.0003315,5]
[361986729,1747925447594,-187.76506891,0.0003315,5]
[361986730,1747925447604,-420.0,0.0003315,5]
[361986731,1747925447614,-420.0,0.0003315,10]
[361986732,1747925447624,-420.0,0.0003315,5]
[361986733,1747925447633,-559.27,0.0003315,5]
[361986734,1747925447643,-1735.1,0.0003315,5]
[361986735,1747925447652,-420.0,0.0003315,5]
[361986736,1747925447662,-420.0,0.0003315,5]
[361986737,1747925447671,-822.89,0.0003315,5]
[361986738,1747925447681,-648.06,0.0003315,5]
[361986739,1747925447691,-420.0,0.0003315,5]
[361986740,1747925447701,-916.85,0.0003315,5]
[361986741,1747925447711,-420.0,0.0003315,5]
[361986742,1747925447721,-661.08,0.0003315,5]
[361986743,1747925447741,-469.80646924,0.0003315,5]
[361986744,1747925448575,-209.79353076,0.0003315,5]
[361986745,1747925448587,-420.0,0.0003315,5]
[361986746,1747925448598,-427.97,0.0003315,5]
[361986747,1747925448608,-801.88,0.0003315,5]
[361986748,1747925448617,-420.0,0.0003315,5]
[361986749,1747925448627,-752.29,0.0003315,5]
[361986750,1747925448637,-132.81616909,0.0003315,5]
[361986751,1747925448649,-56.46489434,0.0003315,5]
[361986752,1747925448659,-210.09010566,0.0003315,5]
[361986753,1747925448671,-209.90989434,0.0003315,5]
[361986754,1747925448681,-420.0,0.0003315,5]
[361986755,1747925448691,-447.06,0.0003315,5]
[361986756,1747925448700,-471.27,0.0003315,5]
[361986757,1747925448710,-754.66,0.0003315,5]
[361986758,1747925448719,-420.0,0.0003315,5]
[361986759,1747925448729,-600.80814766,0.0003315,5]
[361986760,1747925449194,150.0,0.00013,2]
[361986761,1747925449281,-188.09185234,0.0003315,5]
[361986762,1747925449291,-420.0,0.0003315,5]
[361986763,1747925449301,-851.13,0.0003315,5]
[361986764,1747925449311,-473.31,0.0003315,5]
[361986765,1747925449320,-420.0,0.0003315,5]
[361986766,1747925449329,-99.40690666,0.0003315,5]
[361986767,1747925449402,-336.08309334,0.0003315,5]
[361986768,1747925449412,-420.0,0.0003315,5]
[361986769,1747925449421,-420.0,0.0003315,5]
[361986770,1747925449431,-420.0,0.0003315,5]
[361986771,1747925449441,-638.14,0.0003315,5]
[361986772,1747925449450,-420.0,0.0003315,5]
[361986773,1747925449460,-1132.1,0.0003315,5]
[361986774,1747925449469,-420.0,0.0003315,5]
[361986775,1747925449478,-499.06,0.0003315,5]
[361986776,1747925449488,-420.0,0.0003315,5]
[361986777,1747925449498,-420.0,0.0003315,5]
[361986778,1747925449507,-420.0,0.0003315,5]
[361986779,1747925449517,-420.0,0.0003315,5]
[361986780,1747925449526,-894.23,0.0003315,5]
[361986781,1747925449535,-420.0,0.0003315,5]
[361986782,1747925449544,-1030.53,0.0003315,5]
[361986783,1747925449554,-194.19742816,0.0003315,5]
[361986784,1747925449564,-1097.58,0.0003315,5]
[361986785,1747925449573,-711.35,0.0003315,5]
[361986786,1747925449584,-420.0,0.0003315,5]
[361986787,1747925449593,-420.0,0.0003315,5]
[361986788,1747925449603,-991.33,0.0003315,5]
[361986789,1747925449613,-1.2252586,0.0003315,5]
[361986790,1747925449625,-418.7747414,0.0003315,5]
[361986791,1747925449635,-289.93554547,0.0003315,5]
[361986792,1747925450104,-420.0,0.00032876,5]
[361986793,1747925450113,-420.0,0.00032876,5]
[361986794,1747925450123,-130.06445453,0.0003315,5]
[361986795,1747925450133,-728.61,0.0003315,5]
[361986796,1747925450142,-656.09,0.0003315,5]
[361986797,1747925450152,-577.73,0.0003315,5]
[361986798,1747925450161,-420.0,0.0003315,5]
[361986799,1747925450171,-420.0,0.0003315,5]
[361986800,1747925450180,-420.0,0.0003315,5]
[361986801,1747925450189,-739.52,0.0003315,5]
[361986802,1747925450199,-538.05,0.0003315,5]
[361986803,1747925450208,-420.0,0.0003315,5]
[361986804,1747925450217,-420.0,0.0003315,5]
[361986805,1747925450227,-293.68394548,0.0003315,5]
[361986806,1747925450277,-126.31605452,0.0003315,5]
[361986807,1747925450286,-420.0,0.0003315,5]
[361986808,1747925450295,-420.0,0.0003315,5]
[361986809,1747925450304,-1041.55,0.0003315,5]
[361986810,1747925450314,-699.89,0.0003315,5]
[361986811,1747925450323,-420.0,0.0003315,5]
[361986812,1747925450332,-420.0,0.0003315,5]
[361986813,1747925450343,-420.0,0.0003315,5]
[361986814,1747925450353,-444.23,0.0003315,5]
[361986815,1747925450362,-681.53,0.0003315,5]
[361986816,1747925450372,-1114.92,0.0003315,5]
[361986817,1747925450381,-420.0,0.0003315,5]
[361986818,1747925450390,-45761.56394549,0.0003315,2]
[361986819,1747925450445,-11091.0,0.0003315,2]
[361986820,1747925450456,-2060.4494556,0.0003315,2]
[361986821,1747925450467,-705.52841105,0.0003315,2]
[361986822,1747925450490,-55425.0,0.0003315,2]
[361986825,1747925952201,-156.28,0.00013699,2]
[361986826,1747925952232,-200.0,0.00015068,2]
[361986829,1747926339100,-156.28,0.00021404,2]
[361986830,1747926339121,-156.28,0.0002911,2]
[361986831,1747926339144,-496.57,0.00029832,2]
[361986832,1747926339165,-220.36239399,0.00029999,2]
[361986833,1747926340084,-163.91476614,0.00029999,2]
[361986843,1747926631850,-1200.0,0.00029999,2]
[361986845,1747926631860,-1413.909805,0.0003,120]
[361986847,1747926631890,-12986.090195,0.0003,120]
[361986848,1747926631903,-1000.0,0.0003,2]
[361986849,1747926631913,-1000.0,0.00031,2]
[361986850,1747926631923,-1000.0,0.000313,2]
[361986851,1747926631932,-250.0,0.00031435,2]
[361986852,1747926631942,-1000.0,0.000315,2]
[361986853,1747926631952,-168.89,0.00031509,2]
[361986854,1747926631962,-1000.0,0.00031566,2]
[361986855,1747926631972,-3151.36,0.00031566,2]
[361986856,1747926631982,-150.0,0.00031586,7]
[361986857,1747926631993,-161.83,0.00031662,2]
[361986858,1747926632002,-12513.49,0.00031788,2]
[361986859,1747926632012,-150.0,0.00031825,2]
[361986860,1747926632022,-23900.0,0.00031826,2]
[361986861,1747926632031,-175.42,0.00031862,2]
[361986862,1747926632041,-200.0,0.00031899,2]
[361986863,1747926632051,-208.6541028,0.000319,25]
[361986864,1747926632060,-1000.0,0.00032,2]
[361986865,1747926632070,-150.0,0.00032011,2]
[361986866,1747926632079,-458.34,0.00032055,2]
[361986867,1747926632089,-458.34,0.00032055,2]
[361986868,1747926632099,-458.34,0.00032055,2]
[361986869,1747926632108,-207.64,0.00032093,2]
[361986870,1747926632117,-496.57,0.00032096,2]
[361986871,1747926632126,-200.0,0.00032124,117]
[361986872,1747926632136,-417.40311,0.00032155,4]
[361986873,1747926632147,-245.95,0.00032201,2]
[361986875,1747926632156,-805.62,0.00032241,2]
[361986876,1747926632166,-458.34,0.00032241,2]
[361986877,1747926632175,-804.18,0.00032241,2]
[361986878,1747926632185,-919.23,0.00032293,2]
[361986879,1747926632194,-1000.0,0.000323,2]
[361986880,1747926632204,-1680.0,0.0003247,3]
[361986881,1747926632213,-1000.0,0.000325,2]
[361986882,1747926632223,-1910.35383074,0.0003251,5]
[361986883,1747926632233,-154.0,0.00032705,2]
[361986884,1747926632242,-450.0,0.0003274,10]
[361986885,1747926632251,-1000.0,0.00032775,2]
[361986886,1747926632261,-1536.076,0.00032775,33]
[361986887,1747926632270,-1000.0,0.00032776,2]
[361986888,1747926632279,-35930.8565,0.00032776,2]
[361986889,1747926632289,-19437.4543,0.00032776,2]
[361986891,1747926632298,-2930.00664544,0.00032776,2]
[361986893,1747926632310,-166.20652743,0.00032776,2]
[361986894,1747926632321,-310.12485939,0.00032776,15]
[361986895,1747926632331,-166.17,0.00032809,2]
[361986897,1747926632340,-208.65410269,0.00032817,27]
[361986899,1747926632350,-807.32216,0.0003282,2]
[361986900,1747926632359,-343.34300019,0.00032866,2]
[361986902,1747926632368,-2022.5593986,0.00032866,2]
[361986904,1747926632378,-166.07,0.00032866,2]
[361986906,1747926632388,-166.07,0.00032866,2]
[361986908,1747926632398,-166.07,0.00032866,2]
[361986911,1747926632407,-166.07,0.00032866,2]
[361986914,1747926632416,-166.07,0.00032866,2]
[361986917,1747926632425,-166.07,0.00032866,2]
[361986920,1747926632435,-1448.48,0.00032866,2]
[361986922,1747926632444,-500.0,0.00032873,5]
[361986925,1747926632453,-500.0,0.00032873,5]
[361986928,1747926632462,-500.9829885,0.00032873,5]
[361986930,1747926632471,-426.13040596,0.00032873,5]
[361986933,1747926632481,-640.17856498,0.00032873,5]
[361986936,1747926632490,-500.0,0.00032873,5]
[361986939,1747926632500,-500.0,0.00032873,5]
[361986942,1747926632509,-500.0,0.00032873,5]
[361986945,1747926632518,-500.0,0.00032873,5]
[361986948,1747926632528,-500.0,0.00032873,5]
[361986951,1747926632537,-500.0,0.00032873,5]
[361986954,1747926632546,-500.0,0.00032873,5]
[361986957,1747926632555,-500.0,0.00032873,2]
[361986960,1747926632564,-360.705585,0.00032873,5]
[361986963,1747926632573,-500.0,0.00032874,2]
[361986966,1747926632582,-500.0,0.00032874,2]
[361986969,1747926632591,-500.0,0.00032874,2]
[361986972,1747926632600,-343.41509237,0.00032874,2]
[361986975,1747926632609,-478.78437462,0.00032874,2]
[361986978,1747926632618,-500.0,0.00032874,2]
[361986981,1747926632627,-500.0,0.00032874,2]
[361986983,1747926632636,-500.0,0.00032874,2]
[361986986,1747926632646,-500.0,0.00032874,2]
[361986988,1747926632655,-500.0,0.00032874,2]
[361986990,1747926632664,-500.0,0.00032874,2]
[361986993,1747926632673,-510.61441936,0.00032874,2]
[361986995,1747926632682,-500.0,0.00032874,2]
[361986998,1747926632691,-500.0,0.00032874,2]
[361987000,1747926632701,-500.0,0.00032874,2]
[361987003,1747926632710,-500.0,0.00032874,2]
[361987006,1747926632720,-500.0,0.00032874,2]
[361987008,1747926632729,-500.0,0.00032874,2]
[361987011,1747926632738,-500.0,0.00032874,2]
[361987013,1747926632747,-500.0,0.00032874,2]
[361987016,1747926632757,-500.0,0.00032874,2]
[361987018,1747926632767,-167.35767545,0.00032874,2]
[361987021,1747926632776,-500.0,0.00032874,2]
[361987024,1747926632786,-500.0,0.00032874,2]
[361987026,1747926632795,-500.0,0.00032874,2]
[361987028,1747926632805,-500.0,0.00032874,2]
[361987029,1747926632814,-500.0,0.00032874,2]
[361987031,1747926632824,-500.0,0.00032874,2]
[361987033,1747926632834,-500.0,0.00032874,2]
[361987035,1747926632844,-500.0,0.00032874,2]
[361987037,1747926632853,-500.0,0.00032874,2]
[361987039,1747926632863,-500.0,0.00032874,2]
[361987041,1747926632872,-500.0,0.00032874,2]
[361987043,1747926632881,-500.0,0.00032874,2]
[361987045,1747926632891,-500.0,0.00032874,2]
[361987047,1747926632901,-500.0,0.00032874,2]
[361987049,1747926632911,-500.0,0.00032874,2]
[361987051,1747926632920,-500.0,0.00032874,2]
[361987053,1747926632931,-500.0,0.00032874,2]
[361987055,1747926632940,-500.0,0.00032874,2]
[361987057,1747926632950,-500.0,0.00032874,2]
[361987059,1747926632960,-500.0,0.00032874,2]
[361987061,1747926632970,-500.0,0.00032874,2]
[361987063,1747926632980,-500.0,0.00032874,2]
[361987065,1747926632990,-500.0,0.00032874,2]
[361987067,1747926632999,-500.0,0.00032874,2]
[361987069,1747926633008,-500.0,0.00032874,2]
[361987071,1747926633018,-353.14433422,0.00032874,2]
[361987073,1747926633028,-500.0,0.00032874,2]
[361987075,1747926633038,-500.0,0.00032874,2]
[361987077,1747926633048,-167.84604659,0.00032874,2]
[361987079,1747926633059,-500.0,0.00032874,2]
[361987081,1747926633069,-500.0,0.00032874,2]
[361987083,1747926633079,-500.0,0.00032874,2]
[361987085,1747926633090,-500.0,0.00032874,2]
[361987087,1747926633100,-500.0,0.00032874,2]
[361987089,1747926633109,-500.0,0.00032874,2]
[361987090,1747926633119,-500.0,0.00032874,2]
[361987092,1747926633130,-500.0,0.00032874,2]
[361987094,1747926633139,-300.0,0.00032874,2]
[361987096,1747926633151,-500.0,0.00032874,2]
[361987098,1747926633161,-500.0,0.00032874,2]
[361987100,1747926633170,-182.71606297,0.00032875,2]
[361987102,1747926633180,-269.385602,0.00032875,2]
[361987104,1747926633190,-205.73688187,0.00032875,2]
[361987106,1747926633200,-216.63740359,0.00032875,2]
[361987108,1747926633210,-420.0,0.00032876,5]
[361987111,1747926633220,-420.0,0.00032876,5]
[361987113,1747926633229,-420.0,0.00032876,5]
[361987114,1747926633239,-420.0,0.00032876,5]
[361987117,1747926633249,-152.959474,0.00032876,5]
[361987118,1747926633259,-420.0,0.00032876,5]
[361987120,1747926633268,-420.0,0.00032876,5]
[361987122,1747926633278,-632.7,0.00032876,5]
[361987125,1747926633288,-594.22,0.00032876,5]
[361987126,1747926633298,-711.5,0.00032876,5]
[361987128,1747926633313,-451.9,0.00032876,5]
[361987130,1747926633322,-420.0,0.00032876,5]
[361987132,1747926633332,-420.0,0.00032876,5]
[361987134,1747926633343,-420.0,0.00032876,5]
[361987136,1747926633354,-420.0,0.00032876,5]
[361987138,1747926633363,-621.15,0.00032876,5]
[361987140,1747926633373,-420.0,0.00032876,5]
[361987142,1747926633386,-420.0,0.00032876,5]
[361987145,1747926633396,-420.0,0.00032876,5]
[361987147,1747926633406,-502.16,0.00032876,5]
[361987148,1747926633416,-420.0,0.00032876,5]
[361987150,1747926633426,-420.0,0.00032876,5]
[361987152,1747926633436,-420.0,0.00032876,5]
[361987154,1747926633446,-499.32,0.00032876,5]
[361987157,1747926633459,-420.0,0.00032876,5]
[361987159,1747926633469,-601.65,0.00032876,5]
[361987161,1747926633480,-420.0,0.00032876,5]
[361987163,1747926633491,-865.28,0.00032876,5]
[361987164,1747926633501,-420.0,0.00032876,5]
[361987167,1747926633511,-420.0,0.00032876,5]
[361987168,1747926633521,-537.74,0.00032876,5]
[361987170,1747926633531,-570.47,0.00032876,5]
[361987172,1747926633542,-420.0,0.00032876,5]
[361987174,1747926633552,-420.0,0.00032876,5]
[361987176,1747926633562,-420.0,0.00032876,5]
[361987178,1747926633572,-420.0,0.00032876,5]
[361987180,1747926633582,-420.0,0.00032876,5]
[361987182,1747926633593,-420.0,0.00032876,5]
[361987184,1747926633603,-420.0,0.00032876,5]
[361987186,1747926633613,-420.0,0.00032876,5]
[361987188,1747926633623,-701.39,0.00032876,5]
[361987189,1747926633633,-420.0,0.00032876,5]
[361987190,1747926633643,-420.0,0.00032876,5]
[361987191,1747926633653,-420.0,0.00032876,5]
[361987192,1747926633664,-420.0,0.00032876,5]
[361987193,1747926633673,-708.43,0.00032876,5]
[361987194,1747926633683,-459.43,0.00032876,5]
[361987195,1747926633693,-568.8,0.00032876,5]
[361987196,1747926633703,-553.47,0.00032876,5]
[361987197,1747926633713,-420.0,0.00032876,5]
[361987198,1747926633723,-424.42719077,0.00032876,5]
[361987199,1747926633733,-420.0,0.00032876,5]
[361987201,1747926633743,-461.12709449,0.00032876,5]
[361987202,1747926633753,-420.0,0.00032876,5]
[361987204,1747926633764,-787.25,0.00032876,5]
[361987206,1747926633774,-420.0,0.00032876,5]
[361987208,1747926633785,-420.0,0.00032876,5]
[361987210,1747926633795,-606.08,0.00032876,5]
[361987212,1747926633806,-624.69,0.00032876,5]
[361987214,1747926633816,-420.0,0.00032876,5]
[361987216,1747926633826,-420.0,0.00032876,5]
[361987217,1747926633837,-613.15,0.00032876,5]
[361987219,1747926633848,-420.0,0.00032876,5]
[361987221,1747926633857,-420.0,0.00032876,5]
[361987223,1747926633868,-261.23420263,0.00032876,5]
[361987225,1747926633877,-420.0,0.00032876,5]
[361987228,1747926633896,-420.0,0.00032876,5]
[361987230,1747926633911,-420.0,0.00032876,5]
[361987233,1747926633922,-731.12,0.00032876,5]
[361987235,1747926633933,-420.0,0.00032876,5]
[361987237,1747926633943,-420.0,0.00032876,5]
[361987239,1747926633954,-545.67,0.00032876,5]
[361987241,1747926633965,-459.28,0.00032876,5]
[361987243,1747926633975,-420.0,0.00032876,5]
[361987245,1747926633985,-420.0,0.00032876,5]
[361987247,1747926633995,-420.0,0.00032876,5]
[361987249,1747926634005,-478.07,0.00032876,5]
[361987251,1747926634016,-420.0,0.00032876,5]
[361987253,1747926634026,-420.0,0.00032876,5]
[361987255,1747926634037,-808.32,0.00032876,5]
[361987257,1747926634047,-753.4,0.00032876,5]
[361987259,1747926634059,-420.0,0.00032876,5]
[361987261,1747926634068,-420.0,0.00032876,5]
[361987263,1747926634079,-420.0,0.00032876,5]
[361987265,1747926634089,-420.0,0.00032876,5]
[361987267,1747926634099,-420.0,0.00032876,5]
[361987269,1747926634110,-420.0,0.00032876,5]
[361987271,1747926634120,-420.0,0.00032876,5]
[361987273,1747926634130,-549.24,0.00032876,5]
[361987275,1747926634141,-581.03,0.00032876,5]
[361987277,1747926634152,-495.45,0.00032876,5]
[361987278,1747926634162,-813.68,0.00032876,5]
[361987279,1747926634172,-420.0,0.00032876,5]